Workbook

Sheet Sheet1
D4: a= | E4: 0.001
D5: b= | E5: 0.01382934
C11: 0 | D11: =$E$4*(EXP($E$5*C11))-$E$4 -> 0
C12: =C11+50 -> 50 | D12: =$E$4*(EXP($E$5*C12))-$E$4 -> 0.0009966424603
C13: =C12+50 -> 100 | D13: =$E$4*(EXP($E$5*C13))-$E$4 -> 0.002986581114
C14: =C13+50 -> 150 | D14: =$E$4*(EXP($E$5*C14))-$E$4 -> 0.006959777124
C15: =C14+50 -> 200 | D15: =$E$4*(EXP($E$5*C15))-$E$4 -> 0.01489282898
C16: =C15+50 -> 250 | D16: =$E$4*(EXP($E$5*C16))-$E$4 -> 0.03073229716
C17: =C16+50 -> 300 | D17: =$E$4*(EXP($E$5*C17))-$E$4 -> 0.06235805187
C18: =C17+50 -> 350 | D18: =$E$4*(EXP($E$5*C18))-$E$4 -> 0.1255033766
C19: =C18+50 -> 400 | D19: =$E$4*(EXP($E$5*C19))-$E$4 -> 0.251582013
C20: =C19+50 -> 450 | D20: =$E$4*(EXP($E$5*C20))-$E$4 -> 0.5033159719
C21: =C20+50 -> 500 | D21: =$E$4*(EXP($E$5*C21))-$E$4 -> 1.005938683
C22: =C21+50 -> 550 | D22: =$E$4*(EXP($E$5*C22))-$E$4 -> 2.009496529
C23: =C22+50 -> 600 | D23: =$E$4*(EXP($E$5*C23))-$E$4 -> 4.013242737
C24: =C23+50 -> 650 | D24: =$E$4*(EXP($E$5*C24))-$E$4 -> 8.014007494
C25: =C24+50 -> 700 | D25: =$E$4*(EXP($E$5*C25))-$E$4 -> 16.00210428
C26: =C25+50 -> 750 | D26: =$E$4*(EXP($E$5*C26))-$E$4 -> 31.95147751
C27: =C26+50 -> 800 | D27: =$E$4*(EXP($E$5*C27))-$E$4 -> 63.7966733
C28: =C27+50 -> 850 | D28: =$E$4*(EXP($E$5*C28))-$E$4 -> 127.3801434
C29: =C28+50 -> 900 | D29: =$E$4*(EXP($E$5*C29))-$E$4 -> 254.3335995
C30: =C29+50 -> 950 | D30: =$E$4*(EXP($E$5*C30))-$E$4 -> 507.8142605
C31: =C30+50 -> 1000 | D31: =$E$4*(EXP($E$5*C31))-$E$4 -> 1013.924511
